[Event "Titled Tuesday Blitz April 26 Early 2022"]
[White "Petrovskyi, Vadym"]
[Black "Zhigalko, Sergei"]
[WhiteFideId "14165210"]
[BlackFideId "13502956"]
[WhiteElo "2400"]
[BlackElo "2662"]
[Result "1-0"]
[Round "10"]
[TimeControl "180+1"]
[Date "2022.04.26"]
[WhiteClock "0:00:24"]
[BlackClock "0:00:01"]

1. e4 {[%clk 0:03:00]}  c5 {[%clk 0:02:59]} 2. Nf3 {[%clk 0:03:00]}  Nc6 {[%clk 0:02:59]} 3. Bb5 {[%clk 0:03:00]}  Nf6 {[%clk 0:02:59]} 4. Bxc6 {[%clk 0:02:59]}  dxc6 {[%clk 0:02:59]} 5. d3 {[%clk 0:02:59]}  Bg4 {[%clk 0:02:58]} 6. h3 {[%clk 0:02:59]}  Bh5 {[%clk 0:02:59]} 7. g4 {[%clk 0:02:59]}  Bg6 {[%clk 0:02:59]} 8. Nbd2 {[%clk 0:02:59]}  Nd7 {[%clk 0:02:54]} 9. Nc4 {[%clk 0:02:59]}  Qc7 {[%clk 0:02:55]} 10. a4 {[%clk 0:02:59]}  b5 {[%clk 0:02:53]} 11. Ne3 {[%clk 0:02:55]}  e6 {[%clk 0:02:54]} 12. b3 {[%clk 0:02:47]}  Bd6 {[%clk 0:02:52]} 13. Bb2 {[%clk 0:02:45]}  f6 {[%clk 0:02:52]} 14. O-O {[%clk 0:02:43]}  h5 {[%clk 0:02:46]} 15. g5 {[%clk 0:02:41]}  Bf4 {[%clk 0:02:33]} 16. Ng2 {[%clk 0:02:36]}  h4 {[%clk 0:02:18]} 17. axb5 {[%clk 0:02:31]}  cxb5 {[%clk 0:02:17]} 18. Ra6 {[%clk 0:02:31]}  Kf7 {[%clk 0:02:06]} 19. Re1 {[%clk 0:01:47]}  Bh5 {[%clk 0:01:58]} 20. e5 {[%clk 0:01:44]}  Qb7 {[%clk 0:01:23]} 21. Nxf4 {[%clk 0:01:41]}  Bxf3 {[%clk 0:01:20]} 22. g6+ {[%clk 0:01:40]}  Kg8 {[%clk 0:01:15]} 23. Qa1 {[%clk 0:01:40]}  fxe5 {[%clk 0:00:50]} 24. Bxe5 {[%clk 0:01:41]}  Rf8 {[%clk 0:00:49]} 25. Rxa7 {[%clk 0:01:36]}  Qc6 {[%clk 0:00:42]} 26. Bxg7 {[%clk 0:01:28]}  Rxf4 {[%clk 0:00:38]} 27. Bxh8 {[%clk 0:01:24]}  e5 {[%clk 0:00:38]} 28. Ra6 {[%clk 0:01:22]}  Nb6 {[%clk 0:00:36]} 29. Rxe5 {[%clk 0:00:49]}  Qxg6+ {[%clk 0:00:27]} 30. Kf1 {[%clk 0:00:49]}  Qg2+ {[%clk 0:00:08]} 31. Ke1 {[%clk 0:00:49]}  Qg1+ {[%clk 0:00:05]} 32. Kd2 {[%clk 0:00:48]}  Qxa1 {[%clk 0:00:02]} 33. Rxa1 {[%clk 0:00:47]}  Kxh8 {[%clk 0:00:03]} 34. Rxc5 {[%clk 0:00:44]}  Bg2 {[%clk 0:00:02]} 35. Rh5+ {[%clk 0:00:41]}  Kg7 {[%clk 0:00:02]} 36. Rg5+ {[%clk 0:00:41]}  Kf6 {[%clk 0:00:01]} 37. Rxg2 {[%clk 0:00:42]}  Nd5 {[%clk 0:00:02]} 38. Ra6+ {[%clk 0:00:36]}  Kf5 {[%clk 0:00:02]} 39. Rh6 {[%clk 0:00:30]}  Rf3 {[%clk 0:00:02]} 40. Rxh4 {[%clk 0:00:29]}  Ke6 {[%clk 0:00:02]} 41. Rg6+ {[%clk 0:00:29]}  Kf7 {[%clk 0:00:01]} 42. Rc6 {[%clk 0:00:24]} 1-0


[Site "https://www.chess.com"]

[Event "Titled Tuesday Blitz April 26 Early 2022"]
[White "Piesik, Piotr"]
[Black "Dixit, Nikhil"]
[WhiteFideId "1136194"]
[BlackFideId "5059534"]
[WhiteElo "2190"]
[BlackElo "2223"]
[Result "1-0"]
[Round "10"]
[TimeControl "180+1"]
[Date "2022.04.26"]
[WhiteClock "0:02:40"]
[BlackClock "0:02:00"]

1. Nf3 {[%clk 0:02:51]}  Nf6 {[%clk 0:02:54]} 2. g3 {[%clk 0:02:51]}  g6 {[%clk 0:02:50]} 3. Bg2 {[%clk 0:02:51]}  Bg7 {[%clk 0:02:51]} 4. O-O {[%clk 0:02:52]}  O-O {[%clk 0:02:52]} 5. d4 {[%clk 0:02:52]}  d6 {[%clk 0:02:52]} 6. Nbd2 {[%clk 0:02:52]}  Nc6 {[%clk 0:02:51]} 7. e4 {[%clk 0:02:52]}  e5 {[%clk 0:02:49]} 8. dxe5 {[%clk 0:02:53]}  Nxe5 {[%clk 0:02:37]} 9. Nxe5 {[%clk 0:02:53]}  dxe5 {[%clk 0:02:38]} 10. Qe2 {[%clk 0:02:54]}  Qe7 {[%clk 0:02:33]} 11. Nc4 {[%clk 0:02:54]}  Bd7 {[%clk 0:02:18]} 12. a4 {[%clk 0:02:53]}  Bc6 {[%clk 0:02:15]} 13. b3 {[%clk 0:02:53]}  Nd7 {[%clk 0:02:07]} 14. Ba3 {[%clk 0:02:51]}  Qe6 {[%clk 0:02:01]} 15. Bxf8 {[%clk 0:02:50]}  Rxf8 {[%clk 0:02:01]} 16. Rfd1 {[%clk 0:02:46]}  Nc5 {[%clk 0:02:00]} 17. Qe3 {[%clk 0:02:43]}  Qe7 {[%clk 0:02:00]} 18. Na5 {[%clk 0:02:40]} 1-0


[Site "https://www.chess.com"]

[Event "Titled Tuesday Blitz April 26 Early 2022"]
[White "Popadic, Dragan"]
[Black "Janaszak, Dawid"]
[WhiteFideId "913650"]
[BlackFideId "1119206"]
[WhiteElo "2203"]
[BlackElo "2199"]
[Result "0-1"]
[Round "10"]
[TimeControl "180+1"]
[Date "2022.04.26"]
[WhiteClock "0:00:01"]
[BlackClock "0:00:39"]

1. e4 {[%clk 0:02:58]}  c5 {[%clk 0:02:58]} 2. Nc3 {[%clk 0:02:58]}  e6 {[%clk 0:02:56]} 3. d3 {[%clk 0:02:58]}  d5 {[%clk 0:02:53]} 4. g4 {[%clk 0:02:57]}  h5 {[%clk 0:02:50]} 5. g5 {[%clk 0:02:57]}  h4 {[%clk 0:02:46]} 6. Nh3 {[%clk 0:02:56]}  Nc6 {[%clk 0:02:45]} 7. Bg2 {[%clk 0:02:55]}  dxe4 {[%clk 0:02:45]} 8. Nxe4 {[%clk 0:02:54]}  Nge7 {[%clk 0:02:37]} 9. O-O {[%clk 0:02:53]}  Nf5 {[%clk 0:02:36]} 10. Bf4 {[%clk 0:02:32]}  Be7 {[%clk 0:02:35]} 11. c3 {[%clk 0:02:31]}  Qb6 {[%clk 0:02:29]} 12. Qe2 {[%clk 0:02:30]}  Bd7 {[%clk 0:02:28]} 13. Rfd1 {[%clk 0:02:29]}  O-O {[%clk 0:02:19]} 14. Nf6+ {[%clk 0:02:04]}  gxf6 {[%clk 0:02:13]} 15. gxf6 {[%clk 0:02:03]}  Bxf6 {[%clk 0:02:10]} 16. Be4 {[%clk 0:01:50]}  Nce7 {[%clk 0:02:07]} 17. Kh1 {[%clk 0:01:46]}  Ng6 {[%clk 0:02:03]} 18. Rg1 {[%clk 0:01:38]}  Kg7 {[%clk 0:01:56]} 19. Rg2 {[%clk 0:01:26]}  Rg8 {[%clk 0:01:47]} 20. Rag1 {[%clk 0:01:26]}  Kf8 {[%clk 0:01:46]} 21. Bc1 {[%clk 0:01:05]}  Bc6 {[%clk 0:01:42]} 22. Ng5 {[%clk 0:01:05]}  Bxg5 {[%clk 0:01:34]} 23. Bxg5 {[%clk 0:01:03]}  h3 {[%clk 0:01:32]} 24. Rg4 {[%clk 0:01:00]}  c4 {[%clk 0:01:19]} 25. f3 {[%clk 0:00:54]}  cxd3 {[%clk 0:01:18]} 26. Bxd3 {[%clk 0:00:43]}  Rh8 {[%clk 0:00:53]} 27. Bf6 {[%clk 0:00:32]}  Rh5 {[%clk 0:00:47]} 28. Be4 {[%clk 0:00:18]}  Nfe7 {[%clk 0:00:41]} 29. Bd4 {[%clk 0:00:11]}  Qc7 {[%clk 0:00:39]} 30. Rg5 {[%clk 0:00:05]}  Rxg5 {[%clk 0:00:38]} 31. Rxg5 {[%clk 0:00:05]}  e5 {[%clk 0:00:38]} 32. Be3 {[%clk 0:00:02]}  Rd8 {[%clk 0:00:38]} 33. Kg1 {[%clk 0:00:01]}  Bxe4 {[%clk 0:00:38]} 34. fxe4 {[%clk 0:00:01]}  Qc6 {[%clk 0:00:39]} 0-1


[Site "https://www.chess.com"]

[Event "Titled Tuesday Blitz April 26 Early 2022"]
[White "Pourkashiyan, Atousa"]
[Black "Akrakan"]
[WhiteFideId "12502014"]
[WhiteElo "2247"]
[BlackElo "2095"]
[Result "1-0"]
[Round "10"]
[TimeControl "180+1"]
[Date "2022.04.26"]
[WhiteClock "0:01:59"]
[BlackClock "0:01:32"]

1. e4 {[%clk 0:03:00]}  c5 {[%clk 0:03:00]} 2. Nf3 {[%clk 0:03:00]}  Nc6 {[%clk 0:03:00]} 3. d4 {[%clk 0:02:59]}  cxd4 {[%clk 0:03:00]} 4. Nxd4 {[%clk 0:02:59]}  Nf6 {[%clk 0:02:59]} 5. Nc3 {[%clk 0:02:58]}  d6 {[%clk 0:03:00]} 6. Bc4 {[%clk 0:02:52]}  Qa5 {[%clk 0:02:59]} 7. O-O {[%clk 0:02:46]}  g6 {[%clk 0:02:50]} 8. Bd2 {[%clk 0:02:25]}  Nxd4 {[%clk 0:02:43]} 9. Nb5 {[%clk 0:02:25]}  Qb6 {[%clk 0:02:31]} 10. Be3 {[%clk 0:02:26]}  e5 {[%clk 0:02:30]} 11. c3 {[%clk 0:02:26]}  Bd7 {[%clk 0:02:25]} 12. cxd4 {[%clk 0:02:25]}  Bxb5 {[%clk 0:02:25]} 13. dxe5 {[%clk 0:02:25]}  Qa6 {[%clk 0:02:15]} 14. Bxb5+ {[%clk 0:02:24]}  Qxb5 {[%clk 0:02:15]} 15. exf6 {[%clk 0:02:25]}  h5 {[%clk 0:02:07]} 16. Rc1 {[%clk 0:02:23]}  Qe5 {[%clk 0:02:01]} 17. Bd4 {[%clk 0:02:21]}  Qe6 {[%clk 0:02:01]} 18. Rc7 {[%clk 0:02:19]}  Kd8 {[%clk 0:01:53]} 19. Rxb7 {[%clk 0:02:17]}  Bh6 {[%clk 0:01:52]} 20. Qa4 {[%clk 0:02:07]}  Bd2 {[%clk 0:01:42]} 21. Bxa7 {[%clk 0:02:00]}  Qc8 {[%clk 0:01:32]} 22. Bb6+ {[%clk 0:01:59]} 1-0


[Site "https://www.chess.com"]

[Event "Titled Tuesday Blitz April 26 Early 2022"]
[White "Pranav, V"]
[Black "Mirzoev, Azer"]
[WhiteFideId "25060783"]
[BlackFideId "13400304"]
[WhiteElo "2349"]
[BlackElo "2525"]
[Result "1-0"]
[Round "10"]
[TimeControl "180+1"]
[Date "2022.04.26"]
[WhiteClock "0:00:02"]
[BlackClock "0:00:05"]

1. e4 {[%clk 0:02:58]}  e5 {[%clk 0:02:59]} 2. Nf3 {[%clk 0:02:57]}  Nc6 {[%clk 0:02:59]} 3. Nc3 {[%clk 0:02:57]}  Bb4 {[%clk 0:02:57]} 4. Nd5 {[%clk 0:02:54]}  Ba5 {[%clk 0:02:57]} 5. Bc4 {[%clk 0:02:53]}  Nf6 {[%clk 0:02:54]} 6. O-O {[%clk 0:02:47]}  O-O {[%clk 0:02:52]} 7. d3 {[%clk 0:02:46]}  h6 {[%clk 0:02:47]} 8. c3 {[%clk 0:02:45]}  d6 {[%clk 0:02:41]} 9. a4 {[%clk 0:02:45]}  Bb6 {[%clk 0:02:35]} 10. h3 {[%clk 0:02:45]}  a6 {[%clk 0:02:26]} 11. Nh2 {[%clk 0:02:33]}  Nxd5 {[%clk 0:02:24]} 12. Bxd5 {[%clk 0:02:32]}  Be6 {[%clk 0:02:16]} 13. Bxe6 {[%clk 0:02:11]}  fxe6 {[%clk 0:02:16]} 14. Qg4 {[%clk 0:02:08]}  Qf6 {[%clk 0:02:12]} 15. Qg3 {[%clk 0:02:09]}  Kh7 {[%clk 0:02:08]} 16. Be3 {[%clk 0:01:55]}  Bxe3 {[%clk 0:02:05]} 17. fxe3 {[%clk 0:01:56]}  Qg6 {[%clk 0:02:05]} 18. Qh4 {[%clk 0:01:55]}  Rae8 {[%clk 0:01:55]} 19. b4 {[%clk 0:01:54]}  Rf7 {[%clk 0:01:49]} 20. Rxf7 {[%clk 0:01:53]}  Qxf7 {[%clk 0:01:49]} 21. b5 {[%clk 0:01:53]}  Ne7 {[%clk 0:01:33]} 22. Rf1 {[%clk 0:01:50]}  Qg6 {[%clk 0:01:21]} 23. Ng4 {[%clk 0:01:50]}  Ng8 {[%clk 0:01:10]} 24. bxa6 {[%clk 0:01:28]}  bxa6 {[%clk 0:01:10]} 25. Rb1 {[%clk 0:01:28]}  Rf8 {[%clk 0:01:06]} 26. Rb7 {[%clk 0:01:26]}  Qf7 {[%clk 0:00:49]} 27. Kh2 {[%clk 0:01:24]}  Qd7 {[%clk 0:00:38]} 28. a5 {[%clk 0:00:49]}  Nf6 {[%clk 0:00:38]} 29. Ra7 {[%clk 0:00:41]}  Qc6 {[%clk 0:00:35]} 30. d4 {[%clk 0:00:32]}  exd4 {[%clk 0:00:30]} 31. cxd4 {[%clk 0:00:28]}  Nxg4+ {[%clk 0:00:18]} 32. Qxg4 {[%clk 0:00:28]}  Rf6 {[%clk 0:00:18]} 33. h4 {[%clk 0:00:15]}  Rg6 {[%clk 0:00:17]} 34. Qf3 {[%clk 0:00:15]}  Qc2 {[%clk 0:00:15]} 35. Rxa6 {[%clk 0:00:10]}  Qc1 {[%clk 0:00:09]} 36. Ra8 {[%clk 0:00:08]}  Qe1 {[%clk 0:00:08]} 37. Qf4 {[%clk 0:00:04]}  Rf6 {[%clk 0:00:07]} 38. Qg3 {[%clk 0:00:03]}  Qe2 {[%clk 0:00:07]} 39. e5 {[%clk 0:00:03]}  Rg6 {[%clk 0:00:07]} 40. Qf3 {[%clk 0:00:03]}  Qe1 {[%clk 0:00:07]} 41. h5 {[%clk 0:00:03]}  Rg5 {[%clk 0:00:06]} 42. Qe4+ {[%clk 0:00:03]}  Rf5 {[%clk 0:00:06]} 43. Qg4 {[%clk 0:00:02]}  dxe5 {[%clk 0:00:05]} 44. Qg6# {[%clk 0:00:02]} 1-0


[Site "https://www.chess.com"]

[Event "Titled Tuesday Blitz April 26 Early 2022"]
[White "Rottenwohrer Suarez, Juan"]
[Black "De Arruda, Leandro Formes"]
[WhiteFideId "32068182"]
[BlackFideId "22722009"]
[WhiteElo "2158"]
[BlackElo "1852"]
[Result "1-0"]
[Round "10"]
[TimeControl "180+1"]
[Date "2022.04.26"]
[WhiteClock "0:00:07"]
[BlackClock "0:00:18"]

1. Nf3 {[%clk 0:03:00]}  d5 {[%clk 0:02:59]} 2. g3 {[%clk 0:03:01]}  g6 {[%clk 0:02:59]} 3. Bg2 {[%clk 0:03:01]}  Bg7 {[%clk 0:03:00]} 4. d4 {[%clk 0:03:02]}  Nf6 {[%clk 0:03:01]} 5. O-O {[%clk 0:03:02]}  O-O {[%clk 0:03:02]} 6. c4 {[%clk 0:03:02]}  c6 {[%clk 0:03:03]} 7. cxd5 {[%clk 0:03:02]}  cxd5 {[%clk 0:03:04]} 8. Nc3 {[%clk 0:03:02]}  Nc6 {[%clk 0:03:05]} 9. Ne5 {[%clk 0:03:02]}  Re8 {[%clk 0:02:57]} 10. Nxc6 {[%clk 0:02:59]}  bxc6 {[%clk 0:02:58]} 11. Na4 {[%clk 0:03:00]}  e5 {[%clk 0:02:54]} 12. dxe5 {[%clk 0:02:57]}  Rxe5 {[%clk 0:02:55]} 13. Bf4 {[%clk 0:02:57]}  Re8 {[%clk 0:02:53]} 14. Rc1 {[%clk 0:02:58]}  Ba6 {[%clk 0:02:42]} 15. Re1 {[%clk 0:02:57]}  Bb5 {[%clk 0:02:42]} 16. Nc5 {[%clk 0:02:51]}  Nd7 {[%clk 0:02:33]} 17. Nb7 {[%clk 0:02:16]}  Qb6 {[%clk 0:02:22]} 18. Nd6 {[%clk 0:02:16]}  Re6 {[%clk 0:02:09]} 19. Bh3 {[%clk 0:02:08]}  f5 {[%clk 0:02:09]} 20. Nxb5 {[%clk 0:02:03]}  Qxb5 {[%clk 0:02:09]} 21. b3 {[%clk 0:02:03]}  Nf6 {[%clk 0:01:52]} 22. Qd3 {[%clk 0:01:44]}  Qa5 {[%clk 0:01:45]} 23. Qc2 {[%clk 0:00:55]}  Ne4 {[%clk 0:01:40]} 24. Bf1 {[%clk 0:00:46]}  Qb6 {[%clk 0:01:22]} 25. Be3 {[%clk 0:00:24]}  d4 {[%clk 0:01:21]} 26. Qc4 {[%clk 0:00:15]}  Re8 {[%clk 0:01:16]} 27. Bf4 {[%clk 0:00:15]}  d3 {[%clk 0:01:11]} 28. Be3 {[%clk 0:00:14]}  Qa5 {[%clk 0:00:45]} 29. exd3 {[%clk 0:00:14]}  Ng5 {[%clk 0:00:36]} 30. Bxg5 {[%clk 0:00:11]}  Be5 {[%clk 0:00:30]} 31. b4 {[%clk 0:00:06]}  Qc7 {[%clk 0:00:20]} 32. Bf4 {[%clk 0:00:04]}  Kg7 {[%clk 0:00:18]} 33. Rxe5 {[%clk 0:00:04]}  Rxe5 {[%clk 0:00:18]} 34. Bxe5+ {[%clk 0:00:03]}  Qxe5 {[%clk 0:00:18]} 35. Qc3 {[%clk 0:00:02]}  Kf6 {[%clk 0:00:16]} 36. Qxe5+ {[%clk 0:00:02]}  Kxe5 {[%clk 0:00:17]} 37. Kg2 {[%clk 0:00:03]}  Kd4 {[%clk 0:00:18]} 38. h4 {[%clk 0:00:03]}  Rc8 {[%clk 0:00:17]} 39. Rc4+ {[%clk 0:00:03]}  Kd5 {[%clk 0:00:18]} 40. Rc5+ {[%clk 0:00:04]}  Kd6 {[%clk 0:00:18]} 41. Be2 {[%clk 0:00:05]}  Rb8 {[%clk 0:00:18]} 42. Bf3 {[%clk 0:00:05]}  Rxb4 {[%clk 0:00:18]} 43. Rxc6+ {[%clk 0:00:05]}  Kd7 {[%clk 0:00:18]} 44. Ra6 {[%clk 0:00:06]}  Rd4 {[%clk 0:00:18]} 45. Rxa7+ {[%clk 0:00:06]}  Ke6 {[%clk 0:00:18]} 46. Rxh7 {[%clk 0:00:07]}  Rxd3 {[%clk 0:00:19]} 47. Rg7 {[%clk 0:00:07]}  Kf6 {[%clk 0:00:19]} 48. Rb7 {[%clk 0:00:08]}  Ra3 {[%clk 0:00:19]} 49. Rb2 {[%clk 0:00:07]}  g5 {[%clk 0:00:18]} 50. Rb6+ {[%clk 0:00:05]}  Ke5 {[%clk 0:00:18]} 51. hxg5 {[%clk 0:00:06]}  Rxa2 {[%clk 0:00:18]} 52. g6 {[%clk 0:00:06]}  Ra7 {[%clk 0:00:18]} 53. Rb7 {[%clk 0:00:06]}  Ra6 {[%clk 0:00:18]} 54. g7 {[%clk 0:00:06]}  Rg6 {[%clk 0:00:19]} 55. Bh5 {[%clk 0:00:06]}  Rg5 {[%clk 0:00:18]} 56. f4+ {[%clk 0:00:06]}  Kf6 {[%clk 0:00:17]} 57. fxg5+ {[%clk 0:00:07]}  Kxg5 {[%clk 0:00:18]} 58. g8=Q+ {[%clk 0:00:07]}  Kh6 {[%clk 0:00:18]} 59. Qg6# {[%clk 0:00:07]} 1-0


[Site "https://www.chess.com"]

[Event "Titled Tuesday Blitz April 26 Early 2022"]
[White "Rustemov, Alexander"]
[Black "Jaferian, Koosha"]
[WhiteFideId "4119002"]
[BlackFideId "12507440"]
[WhiteElo "2835"]
[BlackElo "2030"]
[Result "0-1"]
[Round "10"]
[TimeControl "180+1"]
[Date "2022.04.26"]
[WhiteClock "0:00:01"]
[BlackClock "0:00:11"]

1. d4 {[%clk 0:03:00]}  Nf6 {[%clk 0:03:00]} 2. c4 {[%clk 0:03:00]}  e6 {[%clk 0:03:00]} 3. Nf3 {[%clk 0:03:01]}  b6 {[%clk 0:03:00]} 4. a3 {[%clk 0:03:01]}  Ba6 {[%clk 0:02:56]} 5. Qc2 {[%clk 0:03:01]}  Bb7 {[%clk 0:02:56]} 6. Nc3 {[%clk 0:02:59]}  c5 {[%clk 0:02:56]} 7. dxc5 {[%clk 0:02:57]}  bxc5 {[%clk 0:02:54]} 8. Bf4 {[%clk 0:02:57]}  d6 {[%clk 0:02:53]} 9. e3 {[%clk 0:02:57]}  Be7 {[%clk 0:02:51]} 10. h3 {[%clk 0:02:57]}  a6 {[%clk 0:02:52]} 11. Be2 {[%clk 0:02:57]}  Qc7 {[%clk 0:02:52]} 12. O-O {[%clk 0:02:57]}  O-O {[%clk 0:02:53]} 13. Rfd1 {[%clk 0:02:57]}  Rd8 {[%clk 0:02:53]} 14. Nd2 {[%clk 0:02:41]}  Nbd7 {[%clk 0:02:51]} 15. Bf3 {[%clk 0:02:36]}  Nf8 {[%clk 0:02:50]} 16. Bxb7 {[%clk 0:02:34]}  Qxb7 {[%clk 0:02:51]} 17. Nde4 {[%clk 0:02:31]}  Nxe4 {[%clk 0:02:45]} 18. Nxe4 {[%clk 0:02:31]}  Qc6 {[%clk 0:02:45]} 19. Rd2 {[%clk 0:02:27]}  f5 {[%clk 0:01:59]} 20. Nc3 {[%clk 0:02:20]}  Ra7 {[%clk 0:01:52]} 21. Rad1 {[%clk 0:02:18]}  Rad7 {[%clk 0:01:52]} 22. Bg3 {[%clk 0:01:59]}  g6 {[%clk 0:01:45]} 23. e4 {[%clk 0:01:55]}  Bf6 {[%clk 0:01:36]} 24. exf5 {[%clk 0:01:43]}  gxf5 {[%clk 0:01:31]} 25. Ne2 {[%clk 0:01:38]}  Kf7 {[%clk 0:01:25]} 26. b4 {[%clk 0:01:29]}  Ng6 {[%clk 0:01:19]} 27. Qd3 {[%clk 0:01:22]}  d5 {[%clk 0:01:12]} 28. bxc5 {[%clk 0:01:01]}  Qxc5 {[%clk 0:01:13]} 29. Qb3 {[%clk 0:00:53]}  d4 {[%clk 0:01:04]} 30. Nc1 {[%clk 0:00:45]}  e5 {[%clk 0:00:52]} 31. Nd3 {[%clk 0:00:43]}  Qe7 {[%clk 0:00:52]} 32. f3 {[%clk 0:00:33]}  e4 {[%clk 0:00:45]} 33. fxe4 {[%clk 0:00:29]}  fxe4 {[%clk 0:00:46]} 34. Re2 {[%clk 0:00:25]}  Kg7 {[%clk 0:00:39]} 35. Rde1 {[%clk 0:00:16]}  e3 {[%clk 0:00:38]} 36. Rf1 {[%clk 0:00:16]}  Rb7 {[%clk 0:00:27]} 37. Qa4 {[%clk 0:00:15]}  Qe4 {[%clk 0:00:24]} 38. Nc5 {[%clk 0:00:13]}  Qe7 {[%clk 0:00:19]} 39. Nxb7 {[%clk 0:00:13]}  Qxb7 {[%clk 0:00:20]} 40. Kh1 {[%clk 0:00:09]}  Qe4 {[%clk 0:00:18]} 41. Rfe1 {[%clk 0:00:08]}  Re8 {[%clk 0:00:17]} 42. Qxa6 {[%clk 0:00:08]}  Bg5 {[%clk 0:00:13]} 43. Qa7+ {[%clk 0:00:05]}  Kh6 {[%clk 0:00:13]} 44. Bh2 {[%clk 0:00:02]}  d3 {[%clk 0:00:14]} 45. c5 {[%clk 0:00:01]}  dxe2 {[%clk 0:00:13]} 46. Rxe2 {[%clk 0:00:02]}  Nf4 {[%clk 0:00:10]} 47. Bxf4 {[%clk 0:00:02]}  Bxf4 {[%clk 0:00:11]} 48. Qd7 {[%clk 0:00:01]}  Qb1+ {[%clk 0:00:11]} 0-1


[Site "https://www.chess.com"]

[Event "Titled Tuesday Blitz April 26 Early 2022"]
[White "Seifert, Henryk"]
[Black "Pires, Marcos Vinicius Torsani"]
[WhiteFideId "1100963"]
[BlackFideId "2118939"]
[WhiteElo "2120"]
[BlackElo "2273"]
[Result "0-1"]
[Round "10"]
[TimeControl "180+1"]
[Date "2022.04.26"]
[WhiteClock "0:00:01"]
[BlackClock "0:00:37"]

1. e4 {[%clk 0:03:00]}  d5 {[%clk 0:02:57]} 2. exd5 {[%clk 0:03:00]}  Qxd5 {[%clk 0:02:55]} 3. Nc3 {[%clk 0:03:00]}  Qd8 {[%clk 0:02:55]} 4. d4 {[%clk 0:02:59]}  c6 {[%clk 0:02:55]} 5. Bc4 {[%clk 0:02:57]}  Bf5 {[%clk 0:02:55]} 6. Qf3 {[%clk 0:02:43]}  e6 {[%clk 0:02:49]} 7. Nge2 {[%clk 0:02:40]}  Nf6 {[%clk 0:02:46]} 8. h3 {[%clk 0:02:39]}  Bxc2 {[%clk 0:02:45]} 9. O-O {[%clk 0:02:23]}  Be7 {[%clk 0:02:43]} 10. Re1 {[%clk 0:02:17]}  O-O {[%clk 0:02:42]} 11. Bg5 {[%clk 0:02:07]}  h6 {[%clk 0:02:34]} 12. Bh4 {[%clk 0:02:04]}  Nbd7 {[%clk 0:02:28]} 13. Nf4 {[%clk 0:02:00]}  Nd5 {[%clk 0:02:01]} 14. Bxe7 {[%clk 0:01:50]}  Nxe7 {[%clk 0:01:55]} 15. Rac1 {[%clk 0:01:40]}  Bf5 {[%clk 0:01:50]} 16. g4 {[%clk 0:01:36]}  Bh7 {[%clk 0:01:50]} 17. Ne4 {[%clk 0:01:07]}  Nd5 {[%clk 0:01:46]} 18. Nh5 {[%clk 0:00:44]}  Bxe4 {[%clk 0:01:38]} 19. Qxe4 {[%clk 0:00:31]}  N7f6 {[%clk 0:01:36]} 20. Nxf6+ {[%clk 0:00:29]}  Qxf6 {[%clk 0:01:37]} 21. Bxd5 {[%clk 0:00:20]}  cxd5 {[%clk 0:01:27]} 22. Qe5 {[%clk 0:00:18]}  Qxe5 {[%clk 0:01:19]} 23. dxe5 {[%clk 0:00:19]}  Rac8 {[%clk 0:01:19]} 24. f4 {[%clk 0:00:18]}  Rfd8 {[%clk 0:01:17]} 25. Kf2 {[%clk 0:00:17]}  Kf8 {[%clk 0:01:18]} 26. Ke3 {[%clk 0:00:17]}  Ke7 {[%clk 0:01:18]} 27. Kd4 {[%clk 0:00:16]}  b5 {[%clk 0:01:17]} 28. b3 {[%clk 0:00:15]}  a5 {[%clk 0:01:16]} 29. f5 {[%clk 0:00:14]}  Kd7 {[%clk 0:01:16]} 30. fxe6+ {[%clk 0:00:07]}  Kxe6 {[%clk 0:01:11]} 31. Rf1 {[%clk 0:00:05]}  b4 {[%clk 0:01:01]} 32. Rfe1 {[%clk 0:00:03]}  a4 {[%clk 0:00:44]} 33. h4 {[%clk 0:00:03]}  axb3 {[%clk 0:00:43]} 34. axb3 {[%clk 0:00:04]}  h5 {[%clk 0:00:39]} 35. gxh5 {[%clk 0:00:02]}  Rh8 {[%clk 0:00:39]} 36. Rxc8 {[%clk 0:00:01]}  Rxc8 {[%clk 0:00:39]} 37. Rg1 {[%clk 0:00:01]}  Rh8 {[%clk 0:00:37]} 0-1


[Site "https://www.chess.com"]

[Event "Titled Tuesday Blitz April 26 Early 2022"]
[White "Seo, Jung Min"]
[Black "Nguyen, Hong Anh"]
[WhiteFideId "1734687"]
[BlackFideId "12406732"]
[WhiteElo "2401"]
[BlackElo "2016"]
[Result "1-0"]
[Round "10"]
[TimeControl "180+1"]
[Date "2022.04.26"]
[WhiteClock "0:01:08"]
[BlackClock "0:00:15"]

1. e4 {[%clk 0:03:00]}  c5 {[%clk 0:02:59]} 2. Nf3 {[%clk 0:03:01]}  Nc6 {[%clk 0:02:59]} 3. Bb5 {[%clk 0:03:00]}  g6 {[%clk 0:02:59]} 4. O-O {[%clk 0:03:00]}  Bg7 {[%clk 0:03:00]} 5. Re1 {[%clk 0:03:00]}  Nf6 {[%clk 0:03:00]} 6. c3 {[%clk 0:02:59]}  O-O {[%clk 0:03:01]} 7. d4 {[%clk 0:02:59]}  d5 {[%clk 0:03:01]} 8. e5 {[%clk 0:03:00]}  Ne4 {[%clk 0:02:57]} 9. Bxc6 {[%clk 0:02:59]}  bxc6 {[%clk 0:02:57]} 10. Be3 {[%clk 0:02:59]}  Rb8 {[%clk 0:02:56]} 11. Qc1 {[%clk 0:02:59]}  cxd4 {[%clk 0:02:51]} 12. cxd4 {[%clk 0:02:59]}  Qb6 {[%clk 0:02:50]} 13. b3 {[%clk 0:02:59]}  Bg4 {[%clk 0:02:47]} 14. Nfd2 {[%clk 0:02:56]}  c5 {[%clk 0:02:35]} 15. dxc5 {[%clk 0:02:46]}  Qc7 {[%clk 0:02:35]} 16. f4 {[%clk 0:02:41]}  f6 {[%clk 0:02:11]} 17. Nxe4 {[%clk 0:02:39]}  dxe4 {[%clk 0:01:57]} 18. Qc4+ {[%clk 0:02:37]}  Kh8 {[%clk 0:01:57]} 19. Qxe4 {[%clk 0:02:37]}  fxe5 {[%clk 0:01:55]} 20. fxe5 {[%clk 0:02:35]}  Bf5 {[%clk 0:01:43]} 21. Qh4 {[%clk 0:02:35]}  Qxe5 {[%clk 0:01:42]} 22. Nd2 {[%clk 0:02:33]}  Qc3 {[%clk 0:01:35]} 23. Nf3 {[%clk 0:02:27]}  Rb4 {[%clk 0:01:31]} 24. Qf2 {[%clk 0:02:13]}  Re4 {[%clk 0:01:17]} 25. Rac1 {[%clk 0:02:11]}  Qa5 {[%clk 0:01:16]} 26. Bd4 {[%clk 0:02:08]}  e5 {[%clk 0:01:10]} 27. Bxe5 {[%clk 0:02:06]}  Rxe1+ {[%clk 0:00:59]} 28. Rxe1 {[%clk 0:02:06]}  Bxe5 {[%clk 0:00:50]} 29. Nxe5 {[%clk 0:02:05]}  Kg8 {[%clk 0:00:47]} 30. Nc6 {[%clk 0:01:55]}  Qc7 {[%clk 0:00:43]} 31. Ne7+ {[%clk 0:01:55]}  Kg7 {[%clk 0:00:39]} 32. Qd4+ {[%clk 0:01:53]}  Kh6 {[%clk 0:00:40]} 33. Qe3+ {[%clk 0:01:42]}  Kg7 {[%clk 0:00:40]} 34. Qd4+ {[%clk 0:01:38]}  Kh6 {[%clk 0:00:39]} 35. h3 {[%clk 0:01:39]}  Bc8 {[%clk 0:00:35]} 36. Nd5 {[%clk 0:01:34]}  Qg3 {[%clk 0:00:33]} 37. Qe3+ {[%clk 0:01:34]}  Qxe3+ {[%clk 0:00:33]} 38. Rxe3 {[%clk 0:01:34]}  Rd8 {[%clk 0:00:32]} 39. Ne7 {[%clk 0:01:32]}  Rd1+ {[%clk 0:00:29]} 40. Kh2 {[%clk 0:01:31]}  Ba6 {[%clk 0:00:27]} 41. c6 {[%clk 0:01:28]}  Rc1 {[%clk 0:00:24]} 42. a4 {[%clk 0:01:21]}  Rc2 {[%clk 0:00:24]} 43. b4 {[%clk 0:01:13]}  Bf1 {[%clk 0:00:24]} 44. b5 {[%clk 0:01:09]}  Bxg2 {[%clk 0:00:20]} 45. Kg1 {[%clk 0:01:09]}  Rc4 {[%clk 0:00:15]} 46. Kxg2 {[%clk 0:01:08]} 1-0


[Site "https://www.chess.com"]